[Event "Late-Titled-Tuesday-Blitz-June-04-2024"]
[Site "Chess.com"]
[Date "2024.06.04"]
[Round "9"]
[White "traviscottofficial"]
[Black "Chessdreamer2020"]
[Result "0-1"]
[WhiteElo "2671"]
[BlackElo "2568"]
[TimeControl "180+1"]
[EndTime "15:45:24 PDT"]
[Termination "Chessdreamer2020 won on time"]

1. c4 {[%clk 0:03:00.9]} 1... e5 {[%clk 0:02:58.9]} 2. Nc3 {[%clk 0:03:00.9]}
2... d6 {[%clk 0:02:59.4]} 3. g3 {[%clk 0:03:00.2]} 3... f5 {[%clk 0:02:59.5]}
4. Bg2 {[%clk 0:03:00.4]} 4... Nf6 {[%clk 0:02:59.8]} 5. Nf3 {[%clk 0:03:00.1]}
5... Be7 {[%clk 0:02:59.8]} 6. O-O {[%clk 0:03:00.1]} 6... O-O {[%clk
0:03:00.2]} 7. b3 {[%clk 0:03:00.4]} 7... Qe8 {[%clk 0:03:00.4]} 8. Bb2 {[%clk
0:02:59.8]} 8... Qh5 {[%clk 0:03:00.5]} 9. e3 {[%clk 0:02:56.5]} 9... f4 {[%clk
0:02:55.5]} 10. exf4 {[%clk 0:02:47.3]} 10... exf4 {[%clk 0:02:55]} 11. Re1
{[%clk 0:02:41.2]} 11... Nc6 {[%clk 0:02:50.9]} 12. Nd4 {[%clk 0:02:26.3]} 12...
Bg4 {[%clk 0:02:40]} 13. Nxc6 {[%clk 0:02:25]} 13... Bxd1 {[%clk 0:02:31.3]} 14.
Nxe7+ {[%clk 0:02:24.3]} 14... Kf7 {[%clk 0:02:20.9]} 15. Raxd1 {[%clk 0:02:23]}
15... f3 {[%clk 0:02:20.8]} 16. Bf1 {[%clk 0:02:19.5]} 16... c6 {[%clk
0:02:16.2]} 17. Ne4 {[%clk 0:02:00.2]} 17... Rad8 {[%clk 0:01:51.2]} 18. h4
{[%clk 0:01:37.4]} 18... h6 {[%clk 0:01:34.5]} 19. Nxf6 {[%clk 0:01:31.8]} 19...
gxf6 {[%clk 0:01:34.2]} 20. Bd3 {[%clk 0:01:23.9]} 20... Rg8 {[%clk 0:01:10.5]}
21. Nxg8 {[%clk 0:01:07.9]} 21... Rxg8 {[%clk 0:01:11.4]} 22. Re4 {[%clk
0:01:06.1]} 22... Rxg3+ {[%clk 0:01:06.5]} 23. fxg3 {[%clk 0:01:03.5]} 23... f2+
{[%clk 0:01:06.9]} 24. Kxf2 {[%clk 0:01:03.9]} 24... Qxd1 {[%clk 0:01:07.8]} 25.
Bc3 {[%clk 0:00:56.2]} 25... Qh1 {[%clk 0:01:06.5]} 26. Re1 {[%clk 0:00:42.1]}
26... Qh2+ {[%clk 0:01:06.1]} 27. Kf3 {[%clk 0:00:42.3]} 27... d5 {[%clk
0:01:03.3]} 28. cxd5 {[%clk 0:00:38.7]} 28... cxd5 {[%clk 0:01:04.2]} 29. Bf5
{[%clk 0:00:29]} 29... d4 {[%clk 0:01:01.7]} 30. Bxd4 {[%clk 0:00:21.6]} 30...
Qxd2 {[%clk 0:01:00.3]} 31. Bf2 {[%clk 0:00:20.7]} 31... Qxa2 {[%clk 0:00:47.4]}
32. Be6+ {[%clk 0:00:20.9]} 32... Kg7 {[%clk 0:00:47.3]} 33. Bd5 {[%clk
0:00:18.1]} 33... Qd2 {[%clk 0:00:45.6]} 34. Re7+ {[%clk 0:00:17.7]} 34... Kf8
{[%clk 0:00:45.3]} 35. Rd7 {[%clk 0:00:17.5]} 35... Qd3+ {[%clk 0:00:44.4]} 36.
Kg2 {[%clk 0:00:17.3]} 36... Qb5 {[%clk 0:00:37.8]} 37. Rf7+ {[%clk 0:00:16.3]}
37... Ke8 {[%clk 0:00:38.1]} 38. Bc4 {[%clk 0:00:14.5]} 38... Qc6+ {[%clk
0:00:38.2]} 39. Kg1 {[%clk 0:00:13.9]} 39... b5 {[%clk 0:00:38.7]} 40. Rxa7
{[%clk 0:00:08.3]} 40... bxc4 {[%clk 0:00:38.2]} 41. bxc4 {[%clk 0:00:09.2]}
41... Qxc4 {[%clk 0:00:37.8]} 42. Ra1 {[%clk 0:00:08.1]} 42... Kf7 {[%clk
0:00:36.8]} 43. Re1 {[%clk 0:00:08.7]} 43... Kg6 {[%clk 0:00:36.3]} 44. Re3
{[%clk 0:00:09.2]} 44... Kf5 {[%clk 0:00:35.9]} 45. Rf3+ {[%clk 0:00:09.5]}
45... Kg6 {[%clk 0:00:35.7]} 46. Rf4 {[%clk 0:00:09.2]} 46... Qd5 {[%clk
0:00:34.6]} 47. Bd4 {[%clk 0:00:08.4]} 47... f5 {[%clk 0:00:32.7]} 48. Bf2
{[%clk 0:00:08.9]} 48... Qd3 {[%clk 0:00:32.1]} 49. Rd4 {[%clk 0:00:08.2]} 49...
Qe2 {[%clk 0:00:31.8]} 50. Rd6+ {[%clk 0:00:07.5]} 50... Kh5 {[%clk 0:00:31.1]}
51. Rd4 {[%clk 0:00:08.1]} 51... Qf3 {[%clk 0:00:29.6]} 52. Rf4 {[%clk
0:00:08.3]} 52... Qd1+ {[%clk 0:00:29.4]} 53. Kh2 {[%clk 0:00:08.6]} 53... Qd5
{[%clk 0:00:29.1]} 54. Be3 {[%clk 0:00:08.3]} 54... Qe5 {[%clk 0:00:27.3]} 55.
Bf2 {[%clk 0:00:06.4]} 55... Kg6 {[%clk 0:00:25.9]} 56. Rd4 {[%clk 0:00:05.5]}
56... Qe2 {[%clk 0:00:24.4]} 57. Rf4 {[%clk 0:00:06]} 57... h5 {[%clk
0:00:22.5]} 58. Kg1 {[%clk 0:00:06.1]} 58... Kf6 {[%clk 0:00:20.7]} 59. Bd4+
{[%clk 0:00:05.1]} 59... Ke6 {[%clk 0:00:21.2]} 60. Bf2 {[%clk 0:00:06]} 60...
Qd1+ {[%clk 0:00:20.2]} 61. Kh2 {[%clk 0:00:06.1]} 61... Qc2 {[%clk 0:00:20.3]}
62. Kg2 {[%clk 0:00:05.9]} 62... Ke5 {[%clk 0:00:20.4]} 63. Rb4 {[%clk
0:00:03.4]} 63... Qc6+ {[%clk 0:00:19.2]} 64. Kh2 {[%clk 0:00:04]} 64... Qf3
{[%clk 0:00:18.7]} 65. Rf4 {[%clk 0:00:03.9]} 65... Qe2 {[%clk 0:00:18.9]} 66.
Kg1 {[%clk 0:00:04]} 66... Qd1+ {[%clk 0:00:18.4]} 67. Kg2 {[%clk 0:00:03.8]}
67... Qd5+ {[%clk 0:00:18.5]} 68. Kf1 {[%clk 0:00:04.4]} 68... Qb3 {[%clk
0:00:18.1]} 69. Bd4+ {[%clk 0:00:04.3]} 69... Kd5 {[%clk 0:00:17.2]} 70. Bf2
{[%clk 0:00:04]} 70... Qd1+ {[%clk 0:00:16.1]} 71. Kg2 {[%clk 0:00:04.5]} 71...
Qc2 {[%clk 0:00:15.9]} 72. Kf3 {[%clk 0:00:03.4]} 72... Ke5 {[%clk 0:00:14.1]}
73. Bd4+ {[%clk 0:00:03.3]} 73... Ke6 {[%clk 0:00:13.6]} 74. Bf2 {[%clk
0:00:04.2]} 74... Qc6+ {[%clk 0:00:13.6]} 75. Ke2 {[%clk 0:00:04.7]} 75... Qg2
{[%clk 0:00:12.9]} 76. Ke3 {[%clk 0:00:04.4]} 76... Ke5 {[%clk 0:00:12.8]} 77.
Ke2 {[%clk 0:00:04.4]} 77... Qh2 {[%clk 0:00:12.8]} 78. Kf1 {[%clk 0:00:04]}
78... Qh1+ {[%clk 0:00:12.6]} 79. Bg1 {[%clk 0:00:04.4]} 79... Qd5 {[%clk
0:00:10.8]} 80. Rf2 {[%clk 0:00:04.3]} 80... Ke4 {[%clk 0:00:09.4]} 81. Re2+
{[%clk 0:00:04.1]} 81... Kf3 {[%clk 0:00:08.6]} 82. Re3+ {[%clk 0:00:04.7]}
82... Kg4 {[%clk 0:00:09.1]} 83. Bf2 {[%clk 0:00:05.1]} 83... Kh3 {[%clk
0:00:08.7]} 84. Ke2 {[%clk 0:00:05.1]} 84... Qc4+ {[%clk 0:00:08.7]} 85. Ke1
{[%clk 0:00:04.3]} 85... Kg2 {[%clk 0:00:09]} 0-1

[Event "Late-Titled-Tuesday-Blitz-June-04-2024"]
[Site "Chess.com"]
[Date "2024.06.04"]
[Round "9"]
[White "Rud_Makarian"]
[Black "IlyaGrigorjev"]
[Result "1/2-1/2"]
[WhiteElo "2998"]
[BlackElo "2871"]
[TimeControl "180+1"]
[EndTime "15:45:35 PDT"]
[Termination "Game drawn - insufficient material"]

1. d4 {[%clk 0:02:59.2]} 1... Nf6 {[%clk 0:03:00.2]} 2. c4 {[%clk 0:02:59.6]}
2... g6 {[%clk 0:03:00.6]} 3. Nc3 {[%clk 0:02:59.5]} 3... d5 {[%clk 0:03:01.2]}
4. Bf4 {[%clk 0:02:59.6]} 4... Bg7 {[%clk 0:03:01.3]} 5. e3 {[%clk 0:03:00.1]}
5... O-O {[%clk 0:03:01.6]} 6. Rc1 {[%clk 0:02:59.6]} 6... Be6 {[%clk
0:02:57.4]} 7. Nf3 {[%clk 0:02:59.5]} 7... dxc4 {[%clk 0:02:51.4]} 8. Ng5 {[%clk
0:02:59.5]} 8... Bg4 {[%clk 0:02:48]} 9. f3 {[%clk 0:02:16.2]} 9... Bc8 {[%clk
0:02:47.5]} 10. Bxc4 {[%clk 0:02:16.2]} 10... Nh5 {[%clk 0:02:37.7]} 11. Bg3
{[%clk 0:02:04.2]} 11... e6 {[%clk 0:02:27.2]} 12. f4 {[%clk 0:02:00.9]} 12...
c5 {[%clk 0:02:18.5]} 13. d5 {[%clk 0:01:33.8]} 13... h6 {[%clk 0:01:42.6]} 14.
Nf3 {[%clk 0:01:31.9]} 14... exd5 {[%clk 0:01:41.4]} 15. Bxd5 {[%clk 0:01:14.2]}
15... Qe7 {[%clk 0:01:41.3]} 16. e4 {[%clk 0:00:56.6]} 16... Rd8 {[%clk
0:01:35.6]} 17. O-O {[%clk 0:00:53.3]} 17... Nc6 {[%clk 0:01:28.3]} 18. Qe1
{[%clk 0:00:46.6]} 18... Nxg3 {[%clk 0:01:23.9]} 19. Qxg3 {[%clk 0:00:45.7]}
19... Be6 {[%clk 0:01:05.1]} 20. Rce1 {[%clk 0:00:42.6]} 20... Nb4 {[%clk
0:00:59.6]} 21. Bxe6 {[%clk 0:00:39]} 21... Qxe6 {[%clk 0:01:00.5]} 22. f5
{[%clk 0:00:37.1]} 22... Qb6 {[%clk 0:00:51.3]} 23. e5 {[%clk 0:00:31.6]} 23...
Nd3 {[%clk 0:00:44.8]} 24. Re4 {[%clk 0:00:28.1]} 24... c4+ {[%clk 0:00:44.5]}
25. Kh1 {[%clk 0:00:27.6]} 25... Qxb2 {[%clk 0:00:39.1]} 26. fxg6 {[%clk
0:00:13.5]} 26... Qxc3 {[%clk 0:00:35]} 27. gxf7+ {[%clk 0:00:13.5]} 27... Kh8
{[%clk 0:00:35.5]} 28. e6 {[%clk 0:00:13.7]} 28... Nc5 {[%clk 0:00:22.1]} 29.
Rg4 {[%clk 0:00:13.4]} 29... Qf6 {[%clk 0:00:17.9]} 30. Rg6 {[%clk 0:00:12]}
30... Ne4 {[%clk 0:00:18.4]} 31. Qg4 {[%clk 0:00:05.2]} 31... Nf2+ {[%clk
0:00:19]} 32. Rxf2 {[%clk 0:00:04.7]} 32... Rd1+ {[%clk 0:00:19.7]} 33. Ng1
{[%clk 0:00:02.7]} 33... Qxf2 {[%clk 0:00:12.5]} 34. Qxd1 {[%clk 0:00:02.7]}
34... Qf5 {[%clk 0:00:11.2]} 35. Rxg7 {[%clk 0:00:02.5]} 35... Kxg7 {[%clk
0:00:11.2]} 36. Qd4+ {[%clk 0:00:02.9]} 36... Qf6 {[%clk 0:00:09.7]} 37. Qg4+
{[%clk 0:00:03]} 37... Kh8 {[%clk 0:00:09.1]} 38. Qe4 {[%clk 0:00:02.9]} 38...
c3 {[%clk 0:00:07.4]} 39. h3 {[%clk 0:00:03.1]} 39... c2 {[%clk 0:00:05.3]} 40.
Qxc2 {[%clk 0:00:02.9]} 40... Qxe6 {[%clk 0:00:06]} 41. Qc3+ {[%clk 0:00:03.2]}
41... Kh7 {[%clk 0:00:06.5]} 42. Qc2+ {[%clk 0:00:03.7]} 42... Kg7 {[%clk
0:00:06.4]} 43. Qb2+ {[%clk 0:00:04]} 43... Qf6 {[%clk 0:00:05.4]} 44. Qxb7
{[%clk 0:00:04.2]} 44... Rf8 {[%clk 0:00:06]} 45. Qxa7 {[%clk 0:00:04.8]} 45...
Rxf7 {[%clk 0:00:06.7]} 46. Qe3 {[%clk 0:00:04.9]} 46... Qf2 {[%clk 0:00:06]}
47. Qe4 {[%clk 0:00:04.5]} 47... Qf5 {[%clk 0:00:06]} 48. Qd4+ {[%clk
0:00:04.5]} 48... Qf6 {[%clk 0:00:06.7]} 49. Qg4+ {[%clk 0:00:04.7]} 49... Qg6
{[%clk 0:00:06.5]} 50. Qe2 {[%clk 0:00:05.2]} 50... Qf6 {[%clk 0:00:04.6]} 51.
Nf3 {[%clk 0:00:05.3]} 51... Qa1+ {[%clk 0:00:04.6]} 52. Kh2 {[%clk 0:00:05.7]}
52... Ra7 {[%clk 0:00:04.8]} 53. Qf2 {[%clk 0:00:05.1]} 53... Qxa2 {[%clk
0:00:03.9]} 54. Qg3+ {[%clk 0:00:05]} 54... Kf8 {[%clk 0:00:04.6]} 55. Qf4+
{[%clk 0:00:05.1]} 55... Qf7 {[%clk 0:00:03.9]} 56. Qxh6+ {[%clk 0:00:05.1]}
56... Kg8 {[%clk 0:00:01.8]} 57. Qg5+ {[%clk 0:00:05.5]} 57... Qg7 {[%clk
0:00:02.4]} 58. Qd8+ {[%clk 0:00:05.8]} 58... Kh7 {[%clk 0:00:02.6]} 59. Qd3+
{[%clk 0:00:05.7]} 59... Kg8 {[%clk 0:00:02.9]} 60. Qd5+ {[%clk 0:00:05.9]}
60... Kh7 {[%clk 0:00:02.9]} 61. Qf5+ {[%clk 0:00:05.9]} 61... Kg8 {[%clk
0:00:03.2]} 62. h4 {[%clk 0:00:06]} 62... Qc7+ {[%clk 0:00:03.3]} 63. g3 {[%clk
0:00:03.2]} 63... Ra2+ {[%clk 0:00:03]} 64. Kh3 {[%clk 0:00:03.4]} 64... Ra7
{[%clk 0:00:03.9]} 65. Qg5+ {[%clk 0:00:03.2]} 65... Qg7 {[%clk 0:00:04.2]} 66.
Qd5+ {[%clk 0:00:03.6]} 66... Qf7 {[%clk 0:00:04.4]} 67. Qd8+ {[%clk 0:00:03.9]}
67... Kg7 {[%clk 0:00:04.9]} 68. Qg5+ {[%clk 0:00:03.3]} 68... Kf8 {[%clk
0:00:04.4]} 69. Qe5 {[%clk 0:00:02.8]} 69... Qd7+ {[%clk 0:00:04]} 70. g4 {[%clk
0:00:02.7]} 70... Ra3 {[%clk 0:00:02.6]} 71. Qc5+ {[%clk 0:00:03]} 71... Qe7
{[%clk 0:00:03.3]} 72. Qxe7+ {[%clk 0:00:02.6]} 72... Kxe7 {[%clk 0:00:04.2]}
73. Kg3 {[%clk 0:00:03.3]} 73... Kf6 {[%clk 0:00:04.6]} 74. h5 {[%clk
0:00:02.8]} 74... Rb3 {[%clk 0:00:04.5]} 75. Kf4 {[%clk 0:00:02.8]} 75... Rb4+
{[%clk 0:00:05.1]} 76. Kg3 {[%clk 0:00:03.4]} 76... Rb3 {[%clk 0:00:06]} 77. h6
{[%clk 0:00:01.9]} 77... Kg6 {[%clk 0:00:06.2]} 78. g5 {[%clk 0:00:02.6]} 78...
Ra3 {[%clk 0:00:06]} 79. Kf4 {[%clk 0:00:03]} 79... Ra4+ {[%clk 0:00:06.5]} 80.
Ke5 {[%clk 0:00:03.5]} 80... Ra5+ {[%clk 0:00:06.8]} 81. Ke6 {[%clk 0:00:03.7]}
81... Ra6+ {[%clk 0:00:07]} 82. Kd5 {[%clk 0:00:03.7]} 82... Ra5+ {[%clk
0:00:05.3]} 83. Ke4 {[%clk 0:00:04]} 83... Ra4+ {[%clk 0:00:05.9]} 84. Ke3
{[%clk 0:00:04.3]} 84... Ra3+ {[%clk 0:00:06.2]} 85. Kf2 {[%clk 0:00:04.9]}
85... Ra4 {[%clk 0:00:06]} 86. Kg3 {[%clk 0:00:05]} 86... Rb4 {[%clk 0:00:06.6]}
87. Ne5+ {[%clk 0:00:04.7]} 87... Kxg5 {[%clk 0:00:05.2]} 88. h7 {[%clk
0:00:05.5]} 88... Rb8 {[%clk 0:00:05.7]} 89. h8=Q {[%clk 0:00:05.6]} 89... Rxh8
{[%clk 0:00:05.6]} 90. Nf7+ {[%clk 0:00:06.5]} 90... Kf6 {[%clk 0:00:06.3]} 91.
Nxh8 {[%clk 0:00:07.4]} 1/2-1/2

[Event "Late-Titled-Tuesday-Blitz-June-04-2024"]
[Site "Chess.com"]
[Date "2024.06.04"]
[Round "10"]
[White "MaiqMaster"]
[Black "HowTo2Draw"]
[Result "0-1"]
[WhiteElo "2451"]
[BlackElo "2595"]
[TimeControl "180+1"]
[EndTime "15:48:59 PDT"]
[Termination "HowTo2Draw won by resignation"]

1. e4 {[%clk 0:03:00.9]} 1... c6 {[%clk 0:02:58.6]} 2. Nf3 {[%clk 0:03:00.4]}
2... d5 {[%clk 0:02:57.8]} 3. d3 {[%clk 0:03:01.1]} 3... dxe4 {[%clk 0:02:56.5]}
4. dxe4 {[%clk 0:03:02]} 4... Qxd1+ {[%clk 0:02:56.3]} 5. Kxd1 {[%clk
0:03:02.9]} 5... f6 {[%clk 0:02:53.2]} 6. Ne1 {[%clk 0:02:50.9]} 6... e5 {[%clk
0:02:52.6]} 7. Nd2 {[%clk 0:02:50.9]} 7... Be6 {[%clk 0:02:49.6]} 8. Bc4 {[%clk
0:02:49.6]} 8... Kf7 {[%clk 0:02:45.4]} 9. Nd3 {[%clk 0:02:48.4]} 9... Nd7
{[%clk 0:02:44.2]} 10. a4 {[%clk 0:02:47.4]} 10... Nc5 {[%clk 0:02:35.4]} 11.
Nxc5 {[%clk 0:02:44.1]} 11... Bxc5 {[%clk 0:02:34.1]} 12. f3 {[%clk 0:02:44.7]}
12... Rd8 {[%clk 0:02:31.6]} 13. Ke2 {[%clk 0:02:44.7]} 13... Rxd2+ {[%clk
0:02:28.5]} 0-1

[Event "Late-Titled-Tuesday-Blitz-June-04-2024"]
[Site "Chess.com"]
[Date "2024.06.04"]
[Round "10"]
[White "mbojan"]
[Black "Pachonpower"]
[Result "1-0"]
[WhiteElo "2826"]
[BlackElo "2407"]
[TimeControl "180+1"]
[EndTime "15:49:26 PDT"]
[Termination "mbojan won by resignation"]

1. e4 {[%clk 0:02:59.7]} 1... e6 {[%clk 0:02:58.1]} 2. d4 {[%clk 0:02:59.9]}
2... d5 {[%clk 0:02:58.5]} 3. Nc3 {[%clk 0:03:00.4]} 3... dxe4 {[%clk
0:02:58.9]} 4. Nxe4 {[%clk 0:03:01.3]} 4... Nd7 {[%clk 0:02:59.3]} 5. Nf3 {[%clk
0:02:59.1]} 5... Ngf6 {[%clk 0:02:59.6]} 6. Nxf6+ {[%clk 0:02:51.2]} 6... Nxf6
{[%clk 0:02:59.7]} 7. c3 {[%clk 0:02:51.9]} 7... b6 {[%clk 0:02:59.1]} 8. Bb5+
{[%clk 0:02:50]} 8... Bd7 {[%clk 0:02:59.2]} 9. Bd3 {[%clk 0:02:47.6]} 9... Bc6
{[%clk 0:02:56]} 10. O-O {[%clk 0:02:48]} 10... Qd5 {[%clk 0:02:54.1]} 11. Re1
{[%clk 0:02:42.6]} 11... Bd6 {[%clk 0:02:52.5]} 12. Bg5 {[%clk 0:02:28.3]} 12...
h6 {[%clk 0:02:48.5]} 13. Bxf6 {[%clk 0:02:27]} 13... gxf6 {[%clk 0:02:49.4]}
14. Be4 {[%clk 0:02:27]} 14... Qb5 {[%clk 0:02:49.1]} 15. a4 {[%clk 0:02:21.3]}
15... Qc4 {[%clk 0:02:45.5]} 16. Nd2 {[%clk 0:02:21.4]} 1-0

[Event "Late-Titled-Tuesday-Blitz-June-04-2024"]
[Site "Chess.com"]
[Date "2024.06.04"]
[Round "10"]
[White "Oleksandr_Bortnyk"]
[Black "rezamahdavi2008"]
[Result "1-0"]
[WhiteElo "3061"]
[BlackElo "2961"]
[TimeControl "180+1"]
[EndTime "15:51:00 PDT"]
[Termination "Oleksandr_Bortnyk won by resignation"]

1. e4 {[%clk 0:03:00.9]} 1... e5 {[%clk 0:02:59.6]} 2. Bc4 {[%clk 0:02:59.7]}
2... Nf6 {[%clk 0:02:52.7]} 3. d3 {[%clk 0:03:00]} 3... Bc5 {[%clk 0:02:53.3]}
4. Nc3 {[%clk 0:02:59.7]} 4... O-O {[%clk 0:02:44.9]} 5. Bg5 {[%clk 0:02:57.8]}
5... h6 {[%clk 0:02:22.1]} 6. Bh4 {[%clk 0:02:57.3]} 6... Be7 {[%clk 0:02:21.9]}
7. Nf3 {[%clk 0:02:55.1]} 7... Nc6 {[%clk 0:02:17.7]} 8. O-O {[%clk 0:02:53.3]}
8... d6 {[%clk 0:02:18]} 9. h3 {[%clk 0:02:48]} 9... Be6 {[%clk 0:02:16.8]} 10.
Bb3 {[%clk 0:02:47.2]} 10... g5 {[%clk 0:02:12.7]} 11. Bg3 {[%clk 0:02:47.3]}
11... Kg7 {[%clk 0:02:10.9]} 12. d4 {[%clk 0:02:46.8]} 12... Bxb3 {[%clk
0:02:06.7]} 13. axb3 {[%clk 0:02:46.6]} 13... Nh5 {[%clk 0:01:54.5]} 14. d5
{[%clk 0:02:37.3]} 14... Nxg3 {[%clk 0:01:47.1]} 15. fxg3 {[%clk 0:02:38.2]}
15... Nb8 {[%clk 0:01:47.4]} 16. Nd2 {[%clk 0:02:33.7]} 16... Nd7 {[%clk
0:01:34.8]} 17. Nc4 {[%clk 0:02:33.5]} 17... f5 {[%clk 0:01:35.2]} 18. Rxf5
{[%clk 0:02:27.6]} 18... Rxf5 {[%clk 0:01:31.8]} 19. exf5 {[%clk 0:02:28.5]}
19... Nf6 {[%clk 0:01:32.6]} 20. Qd3 {[%clk 0:02:24.8]} 20... Qd7 {[%clk
0:01:10.1]} 21. g4 {[%clk 0:02:25.1]} 21... c6 {[%clk 0:01:07.8]} 22. Nb6 {[%clk
0:02:23.8]} 1-0

[Event "Late-Titled-Tuesday-Blitz-June-04-2024"]
[Site "Chess.com"]
[Date "2024.06.04"]
[Round "10"]
[White "lluiss"]
[Black "meme0105"]
[Result "1-0"]
[WhiteElo "2210"]
[BlackElo "1836"]
[TimeControl "180+1"]
[EndTime "15:51:07 PDT"]
[Termination "lluiss won by resignation"]

1. Nf3 {[%clk 0:03:00.9]} 1... g6 {[%clk 0:02:59.4]} 2. d4 {[%clk 0:02:58.5]}
2... Bg7 {[%clk 0:02:59.8]} 3. c4 {[%clk 0:02:57.9]} 3... f5 {[%clk 0:03:00.3]}
4. g3 {[%clk 0:02:54.9]} 4... Nf6 {[%clk 0:03:00.9]} 5. Bg2 {[%clk 0:02:54.9]}
5... d5 {[%clk 0:03:01.3]} 6. O-O {[%clk 0:02:51.4]} 6... c6 {[%clk 0:02:59.2]}
7. cxd5 {[%clk 0:02:47.7]} 7... cxd5 {[%clk 0:02:58.3]} 8. Nc3 {[%clk
0:02:46.7]} 8... O-O {[%clk 0:02:58.1]} 9. Bf4 {[%clk 0:02:46.4]} 9... Ne4
{[%clk 0:02:45]} 10. Rc1 {[%clk 0:02:36]} 10... Nc6 {[%clk 0:02:42.8]} 11. Ne5
{[%clk 0:02:26.5]} 11... Nxe5 {[%clk 0:02:29]} 12. Bxe5 {[%clk 0:02:26.3]} 12...
Bxe5 {[%clk 0:02:29.6]} 13. dxe5 {[%clk 0:02:26]} 13... Qa5 {[%clk 0:02:30.2]}
14. Qxd5+ {[%clk 0:02:17]} 14... Qxd5 {[%clk 0:02:27.9]} 15. Nxd5 {[%clk
0:02:17.1]} 15... Kf7 {[%clk 0:02:11.7]} 16. f3 {[%clk 0:02:02.9]} 16... Ng5
{[%clk 0:02:04.8]} 17. f4 {[%clk 0:02:00.5]} 17... Ne6 {[%clk 0:02:04.5]} 18.
Nc7 {[%clk 0:01:59.7]} 18... Nxc7 {[%clk 0:02:04.1]} 19. Rxc7 {[%clk 0:01:58.6]}
19... Rb8 {[%clk 0:02:03]} 20. Bd5+ {[%clk 0:01:47.8]} 20... Be6 {[%clk
0:02:01.9]} 21. Bxb7 {[%clk 0:01:41]} 21... Bxa2 {[%clk 0:01:59.2]} 22. Ra1
{[%clk 0:01:40.9]} 22... Bc4 {[%clk 0:01:55.4]} 23. Rxa7 {[%clk 0:01:37.9]}
23... Bxe2 {[%clk 0:01:55.2]} 24. Bd5+ {[%clk 0:01:37.4]} 24... Kg7 {[%clk
0:01:54.5]} 25. Rxe7+ {[%clk 0:01:36.3]} 25... Kh6 {[%clk 0:01:54.9]} 1-0

[Event "Late-Titled-Tuesday-Blitz-June-04-2024"]
[Site "Chess.com"]
[Date "2024.06.04"]
[Round "10"]
[White "AlexeiShirov"]
[Black "nihalsarin"]
[Result "0-1"]
[WhiteElo "2894"]
[BlackElo "3216"]
[TimeControl "180+1"]
[EndTime "15:51:47 PDT"]
[Termination "nihalsarin won by resignation"]

1. e4 {[%clk 0:03:00.9]} 1... c5 {[%clk 0:02:23.4]} 2. Nf3 {[%clk 0:03:00.1]}
2... e6 {[%clk 0:02:22.9]} 3. d4 {[%clk 0:02:59.5]} 3... cxd4 {[%clk 0:02:23.8]}
4. Nxd4 {[%clk 0:02:59.5]} 4... a6 {[%clk 0:02:23.4]} 5. c4 {[%clk 0:02:58.7]}
5... Nf6 {[%clk 0:02:22]} 6. Nc3 {[%clk 0:02:58.3]} 6... Qc7 {[%clk 0:02:21.4]}
7. a3 {[%clk 0:02:54]} 7... b6 {[%clk 0:02:21]} 8. Be3 {[%clk 0:02:53.4]} 8...
Bb7 {[%clk 0:02:20.3]} 9. f3 {[%clk 0:02:52.4]} 9... Nc6 {[%clk 0:02:20.2]} 10.
Rc1 {[%clk 0:02:49.8]} 10... Nxd4 {[%clk 0:02:12.8]} 11. Bxd4 {[%clk 0:02:48.8]}
11... Bd6 {[%clk 0:02:08]} 12. Na4 {[%clk 0:02:44.9]} 12... Bxh2 {[%clk
0:02:03.8]} 13. Bxb6 {[%clk 0:02:38.2]} 13... Bg3+ {[%clk 0:02:03.4]} 14. Ke2
{[%clk 0:02:36.1]} 14... Qb8 {[%clk 0:02:03.1]} 15. Bc5 {[%clk 0:02:23.6]} 15...
Bc6 {[%clk 0:02:01]} 16. Nb6 {[%clk 0:02:21.7]} 16... Ra7 {[%clk 0:02:01.4]} 17.
b4 {[%clk 0:02:20.6]} 17... Rb7 {[%clk 0:02:01]} 18. Na4 {[%clk 0:01:57.2]}
18... Bf4 {[%clk 0:01:51.3]} 19. Rc3 {[%clk 0:01:54.4]} 19... d6 {[%clk
0:01:51]} 20. Be3 {[%clk 0:01:51.6]} 20... Bxe3 {[%clk 0:01:50.8]} 21. Rxe3
{[%clk 0:01:51.3]} 21... O-O {[%clk 0:01:51.5]} 22. Nc3 {[%clk 0:01:49.4]} 22...
Rc8 {[%clk 0:01:51.3]} 23. Kf2 {[%clk 0:01:49.2]} 23... Be8 {[%clk 0:01:44.2]}
24. Qd4 {[%clk 0:01:46.7]} 24... h6 {[%clk 0:01:41.7]} 25. Be2 {[%clk 0:01:46]}
25... Rd7 {[%clk 0:01:40.8]} 26. Rd1 {[%clk 0:01:45]} 26... Rdd8 {[%clk
0:01:41.2]} 27. Rd2 {[%clk 0:01:38]} 27... Nh5 {[%clk 0:01:40.5]} 28. Bf1 {[%clk
0:01:32.1]} 28... Nf4 {[%clk 0:01:34.2]} 29. g3 {[%clk 0:01:30.2]} 29... e5
{[%clk 0:01:34.2]} 0-1

[Event "Late-Titled-Tuesday-Blitz-June-04-2024"]
[Site "Chess.com"]
[Date "2024.06.04"]
[Round "10"]
[White "simaopdias"]
[Black "Nemsko"]
[Result "1-0"]
[WhiteElo "2226"]
[BlackElo "2312"]
[TimeControl "180+1"]
[EndTime "15:51:57 PDT"]
[Termination "simaopdias won by resignation"]

1. e4 {[%clk 0:03:00]} 1... e5 {[%clk 0:02:57.7]} 2. Nf3 {[%clk 0:03:00.4]} 2...
Nc6 {[%clk 0:02:56.9]} 3. Bc4 {[%clk 0:03:01.1]} 3... Bc5 {[%clk 0:02:55.1]} 4.
c3 {[%clk 0:03:01.4]} 4... Nf6 {[%clk 0:02:53.7]} 5. d3 {[%clk 0:03:02]} 5... a6
{[%clk 0:02:53.2]} 6. Bb3 {[%clk 0:03:02]} 6... O-O {[%clk 0:02:53.1]} 7. Nbd2
{[%clk 0:03:02.1]} 7... d6 {[%clk 0:02:50]} 8. O-O {[%clk 0:03:02.3]} 8... Be6
{[%clk 0:02:49.6]} 9. Re1 {[%clk 0:03:00.5]} 9... h6 {[%clk 0:02:49.2]} 10. h3
{[%clk 0:03:00.3]} 10... Re8 {[%clk 0:02:48.6]} 11. Nh2 {[%clk 0:02:55.5]} 11...
Ba7 {[%clk 0:02:44.3]} 12. Ndf1 {[%clk 0:02:55.8]} 12... d5 {[%clk 0:02:41.8]}
13. Qf3 {[%clk 0:02:55.6]} 13... dxe4 {[%clk 0:02:33.8]} 14. dxe4 {[%clk
0:02:56.5]} 14... Bxb3 {[%clk 0:02:31.6]} 15. axb3 {[%clk 0:02:56.3]} 15... Qe7
{[%clk 0:02:26.5]} 16. Be3 {[%clk 0:02:55.1]} 16... Qe6 {[%clk 0:02:21.8]} 17.
b4 {[%clk 0:02:55.3]} 17... Bxe3 {[%clk 0:02:12.8]} 18. Nxe3 {[%clk 0:02:54.8]}
18... Ne7 {[%clk 0:02:08.4]} 19. Rad1 {[%clk 0:02:43.1]} 19... Rad8 {[%clk
0:02:07.9]} 20. Nhg4 {[%clk 0:02:37.3]} 20... Nxg4 {[%clk 0:02:03]} 21. Qxg4
{[%clk 0:02:36.4]} 21... Qxg4 {[%clk 0:01:59.6]} 22. Nxg4 {[%clk 0:02:37.3]}
22... f6 {[%clk 0:01:59.3]} 23. Ne3 {[%clk 0:02:36.8]} 23... c6 {[%clk
0:01:53.6]} 24. Kf1 {[%clk 0:02:36.8]} 24... Kf7 {[%clk 0:01:53.2]} 25. Ke2
{[%clk 0:02:36.7]} 25... Ke6 {[%clk 0:01:53.4]} 26. Nc4 {[%clk 0:02:36.3]} 26...
Nc8 {[%clk 0:01:53.5]} 27. Na5 {[%clk 0:02:29]} 27... Nd6 {[%clk 0:01:49]} 28.
Rxd6+ {[%clk 0:02:05.2]} 28... Rxd6 {[%clk 0:01:47.6]} 29. Nxb7 {[%clk
0:02:05.2]} 29... Red8 {[%clk 0:01:33.4]} 30. Nxd6 {[%clk 0:02:01.3]} 30... Rxd6
{[%clk 0:01:33.4]} 31. Ra1 {[%clk 0:02:01.6]} 31... f5 {[%clk 0:01:25.3]} 32.
exf5+ {[%clk 0:01:59.6]} 32... Kxf5 {[%clk 0:01:25.2]} 33. Rxa6 {[%clk
0:01:59.9]} 33... Rg6 {[%clk 0:01:25.5]} 34. g3 {[%clk 0:01:59.2]} 34... Re6
{[%clk 0:01:21.1]} 35. Ke3 {[%clk 0:01:58.9]} 35... Kf6 {[%clk 0:01:20]} 36. Ke4
{[%clk 0:01:56.9]} 36... Rd6 {[%clk 0:01:19.2]} 37. b5 {[%clk 0:01:53.6]} 1-0